Workbook

Sheet 株洲凯天
A1: 附表2：
A2: 株洲凯天环保科技有限公司2025年第3季度拆解产物产生、处理明细表
A3: 拆解产物名称 | B3: 编码 | C3: 上期结存（吨） | D3: 本期产生量（吨） | E3: 本期盘盈（吨） | F3: 本期处理量（吨） | G3: 本期盘亏（吨） | H3: 本期处理量明细 | J3: 库存量（吨）
H4: 重量（吨） | I4: 处理单位
A5: 铜及其合金 | B5: B-01-01 | C5: 58.2535 | D5: 86.994 | E5: 0.01 | F5: 88.429 | G5: 0.092 | H5: 7.32 | I5: 天津奥尼斯特物产开发有限公司 | J5: =C5+D5+E5-F5-G5 -> 56.7365
H6: 13.307 | I6: 天津博瑞特金属制品有限公司
H7: 7.08 | I7: 天津恒丰运业金属制品有限公司
H8: 18.803 | I8: 天津凯撒金属有限公司
H9: 13.679 | I9: 天津荣和金属制品有限公司
H10: 28.24 | I10: 天津永俊金属制品有限公司
A11: 铝及其合金 | B11: B-01-02 | C11: 51.031 | D11: 73.115 | E11: 0.007 | F11: 70.38 | G11: 0.002 | H11: 2.1 | I11: 天津奥尼斯特物产开发有限公司 | J11: =C11+D11+E11-F11-G11 -> 53.771
H12: 68.28 | I12: 天津开泰金属制品有限公司
A13: 锌及其合金 | B13: B-01-03 | C13: 0.651 | D13: 1.996 | E13: 0 | F13: 0 | G13: 0 | H13: 0 | I13: 暂存 | J13: 2.647
A14: 铁及其合金 | B14: B-02-01 | C14: 224.156 | D14: 2506.0371 | E14: 0.183 | F14: 2455.32 | G14: 0 | H14: 1978.54 | I14: 湖南鑫泓环保科技有限公司 | J14: 275.0561
H15: 22.05 | I15: 临沂恒昌金属制品有限公司
H16: 106.69 | I16: 娄底市报废汽车回收拆解有限公司
H17: 71.07 | I17: 天津埃莫森铜业有限公司
H18: 1.51 | I18: 天津奥尼斯特物产开发有限公司
H19: 144.38 | I19: 天津开泰金属制品有限公司
H20: 114.96 | I20: 天津荣和金属制品有限公司
H21: 16.12 | I21: 株洲市悦智贸易有限公司
A22: 其他塑料 | B22: C-03-01 | C22: 176.341 | D22: 1676.1104 | E22: 0 | F22: 1626.1534 | G22: 0 | H22: 152.9 | I22: 安徽国恩新型材料科技有限公司 | J22: =C22+D22+E22-F22-G22 -> 226.298
H23: 8.6 | I23: 临沂恒昌金属制品有限公司
H24: 239.06 | I24: 临沂钰涵再生资源有限公司
H25: 125.59 | I25: 韶关鑫山塑料有限公司
H26: 11.939 | I26: 天津埃莫森铜业有限公司
H27: 6.8 | I27: 天津奥尼斯特物产开发有限公司
H28: 27.62 | I28: 天津开泰金属制品有限公司
H29: 29.05 | I29: 天津永俊金属制品有限公司
H30: 1024.5944 | I30: 深加工领料出库
A31: 异丁烷制冷剂 | B31: D-01-01 | C31: 0 | D31: 6.844 | E31: 0 | F31: 3.18 | G31: 0 | H31: 3.18 | I31: 天津澳宏环保材料有限公司 | J31: =C31+D31+E31-F31-G31 -> 3.664
A32: 润滑油 | B32: D-01-03 | C32: 0.975 | D32: 9.6155 | E32: 0 | F32: 6.62 | G32: 0 | H32: 6.62 | I32: 湖南中宝石化有限公司 | J32: 3.9705
A33: 平衡环内盐水 | B33: D-01-04 | C33: 0.575 | D33: 65.078 | E33: 0 | F33: 64.29 | G33: 0 | H33: 64.29 | I33: 株洲凯天环保科技有限公司 | J33: 1.363
A34: CRT玻璃 | B34: E-01-01 | C34: 6.304 | D34: 0 | E34: 0 | F34: 1.707 | G34: 0 | H34: 1.707 | I34: 湖南省鸿森玻璃纤维有限公司 | J34: 4.597
A35: CRT锥玻璃 | B35: E-01-02 | C35: 96.743 | D35: 66.616 | E35: 0 | F35: 64.71 | G35: 0 | H35: 64.71 | I35: 汨罗万容固体废物处理有限公司 | J35: 98.649
A36: CRT屏玻璃 | B36: E-01-03 | C36: 24.927 | D36: 132.107 | E36: 0 | F36: 126.059 | G36: 0 | H36: 126.059 | I36: 湖南省鸿森玻璃纤维有限公司 | J36: 30.975
A37: 管颈管（电子枪）玻璃 | B37: E-01-06 | C37: 2.404 | D37: 0.693 | E37: 0 | F37: 0 | G37: 0 | H37: 0 | I37: 暂存 | J37: 3.097
A38: 其他玻璃 | B38: E-01-07 | C38: 18.355 | D38: 110.866 | E38: 0 | F38: 70.699 | G38: 0 | H38: 70.699 | I38: 株洲辉文工贸有限公司 | J38: 58.522
A39: 压缩机 | B39: F-01-03 | C39: 193.848 | D39: 1123.2555 | E39: 0 | F39: 966.3 | G39: 0 | H39: 172.02 | I39: 湖北翰联环保科技有限公司 | J39: 350.8035
E40: 0 | G40: 0 | H40: 137.6 | I40: 湖南川拓再生资源有限公司
E41: 0 | G41: 0 | H41: 208.21 | I41: 天津奥尼斯特物产开发有限公司
E42: 0 | G42: 0 | H42: 71.89 | I42: 天津晟耀再生资源有限公司
E43: 0 | G43: 0 | H43: 204.6 | I43: 天津凯撒金属有限公司
E44: 0 | G44: 0 | H44: 171.98 | I44: 天津永俊金属制品有限公司
A45: 电动机 | B45: F-01-04 | C45: 115.66 | D45: 278.503 | E45: 0.039 | F45: 250.039 | G45: 0.051 | H45: 209.119 | I45: 临沂恒昌金属制品有限公司 | J45: =C45+D45+E45-F45-G45 -> 144.112
H46: 21.08 | I46: 天津开泰金属制品有限公司
H47: 19.84 | I47: 天津永俊金属制品有限公司
A48: 电容器 | B48: F-01-05 | C48: 12.689 | D48: 15.6845 | E48: 0 | F48: 6.1 | G48: 0 | H48: 6.1 | I48: 天津开泰金属制品有限公司 | J48: 22.2735
A49: 硬 盘 | B49: F-01-06 | C49: 2.8255 | D49: 2.383 | E49: 0.014 | F49: 1.87 | G49: 0 | H49: 1.87 | I49: 天津奥尼斯特物产开发有限公司 | J49: 3.3525
A50: 印刷电路板 | B50: F-01-07 | C50: 56.464 | D50: 82.362 | E50: 0.125 | F50: 53.454 | G50: 0 | H50: 21.554 | I50: 湖北省华中再生资源有限公司 | J50: 85.497
G51: 0 | H51: 31.9 | I51: 永兴鹏琨环保有限公司
A52: 电 池 | B52: F-01-09 | C52: 0.739 | D52: 0.115 | E52: 0.035 | F52: 0 | G52: 0 | I52: 暂存 | J52: =C52+D52+E52-F52-G52 -> 0.889
A53: 扬声器 | B53: F-01-10 | C53: 18.781 | D53: 5.334 | E53: 0.046 | F53: 18.636 | G53: 0 | H53: 12.41 | I53: 临沂恒昌金属制品有限公司 | J53: 5.525
G54: 0 | H54: 0.56 | I54: 天津奥尼斯特物产开发有限公司
G55: 0 | H55: 5.666 | I55: 天津开泰金属制品有限公司
A56: 管颈管（电子枪） | B56: F-01-11 | C56: 1.233 | D56: 0.335 | E56: 0.007 | F56: 0 | G56: 0 | H56: 0 | I56: 暂存 | J56: 1.575
A57: 电源 | B57: F-01-12 | C57: 7.032 | D57: 1.736 | F57: 0 | G57: 0 | H57: 0 | I57: 暂存 | J57: 8.768
A58: 光驱 | B58: F-01-13 | C58: 0.283 | D58: 0 | E58: 0.041 | F58: 0 | G58: 0 | H58: 0 | I58: 暂存 | J58: 0.324
A59: 蒸发器 | B59: F-01-15 | C59: 22.1925 | D59: 92.983 | E59: 0 | F59: 86.14 | G59: 0 | H59: 55.34 | I59: 天津科盟环保科技有限公司 | J59: 29.0355
G60: 0 | H60: 30.8 | I60: 天津荣和金属制品有限公司
A61: 冷凝器 | B61: F-01-16 | C61: 73.1305 | D61: 194.3945 | E61: 0 | F61: 186.12 | G61: 0 | H61: 20.61 | I61: 湖南同和新材料有限公司 | J61: =C61+D61+E61-F61-G61 -> 81.405
G62: 0 | H62: 21.1 | I62: 汨罗市华潇铝业有限公司
G63: 0 | H63: 61.96 | I63: 天津诺康金属制品有限公司
G64: 0 | H64: 82.45 | I64: 天津永俊金属制品有限公司
A65: 开关 | B65: F-01-17 | C65: 1.404 | D65: 1.078 | E65: 0 | F65: 0 | G65: 0 | H65: 0 | I65: 暂存 | J65: 2.482
A66: 调频器 | B66: F-01-20 | C66: 1.235 | D66: 0 | E66: 0 | F66: 0 | G66: 0.023 | H66: 0 | I66: 暂存 | J66: 1.212
A67: 变压器 | B67: F-01-21 | C67: 14.062 | D67: 25.29 | E67: 0.103 | F67: 24.273 | G67: 0 | H67: 24.273 | I67: 天津开泰金属制品有限公司 | J67: 15.182
A68: 液晶面板 | B68: F-01-23 | C68: 45.872 | D68: 12.009 | E68: 0 | F68: 49.878 | G68: 0 | H68: 49.878 | I68: 湖南嘉宸再生资源利用有限公司 | J68: 8.003
A69: 背光源 | B69: F-01-24 | C69: 1.0425 | D69: 0.071 | E69: 0 | F69: 1.0895 | G69: 0 | H69: 0.1065 | I69: 天津奥尼斯特物产开发有限公司 | J69: 0.024
E70: 0 | G70: 0 | H70: 0.983 | I70: 天津永俊金属制品有限公司
A71: 含汞背光灯管 | B71: F-01-25 | C71: 0.9515 | D71: 0.11 | E71: 0 | F71: 0.9645 | G71: 0 | H71: 0.9645 | I71: 陕西安信显像管循环处理应用有限公司 | J71: =C71+D71+E71-F71-G71 -> 0.097
A72: 其他废弃零部件 | B72: F-01-26 | C72: 124.245 | D72: 182.4855 | E72: 0.156 | F72: 184.5625 | G72: 0 | H72: 104 | I72: 天津博瑞特金属制品有限公司 | J72: =C72+D72+E72-F72-G72 -> 122.324
G73: 0 | H73: 8.779 | I73: 天津开泰金属制品有限公司
G74: 0 | H74: 6.97 | I74: 天津凯撒金属有限公司
G75: 0 | H75: 33.59 | I75: 天津荣和金属制品有限公司
G76: 0 | H76: 31.2235 | I76: 天津永俊金属制品有限公司
A77: 荧光粉 | B77: G-01-02 | C77: 0 | D77: 0.054 | E77: 0 | F77: 0 | G77: 0 | H77: 0 | I77: 暂存 | J77: =C77+D77+E77-F77-G77 -> 0.054
A78: 电线电缆 | B78: G-01-03 | C78: 24.7277 | D78: 41.5435 | E78: 0.055 | F78: 52.35 | G78: 0 | H78: 1.28 | I78: 天津奥尼斯特物产开发有限公司 | J78: 13.9762
G79: 0 | H79: 51.07 | I79: 天津淏泽丰润业金属有限公司
A80: 保温层材料 | B80: G-01-04 | C80: 56.309 | D80: 718.0405 | E80: 0 | F80: 690.97 | G80: 11.879 | H80: 690.97 | I80: 株洲恒基资源再生有限公司 | J80: 71.5005
A81: 橡 胶 | B81: G-01-06 | C81: 9.3855 | D81: 70.133 | E81: 0 | F81: 40.444 | G81: 0.043 | H81: 8.764 | I81: 天津荣和金属制品有限公司 | J81: 39.0315
H82: 31.68 | I82: 天津永俊金属制品有限公司
A83: 其他杂料及废物 | B83: G-01-07 | C83: 13.8995 | D83: 229.7325 | E83: 0 | F83: 229.0725 | G83: 0 | H83: 229.0725 | I83: 株洲合信再生资源有限公司 | J83: =C83+D83+E83-F83-G83 -> 14.5595
A84: 拆解产物合计 | C84: =SUM(C5:C83) -> 1458.7267 | D84: 7813.7045 | E84: 0.821 | F84: 7419.8104 | G84: 12.09 | H84: 7419.8104 | J84: 1841.3518
A85: 其他塑料二次加工情况
A86: 其他塑料（二次产物） | B86: C-03-01 | C86: 522.297 | D86: 993.0415 | E86: 0 | F86: 1015.205 | G86: 0 | H86: 64.48 | I86: 安徽国恩新型材料科技有限公司 | J86: 500.1335
H87: 33.21 | I87: 广东华盈供销再生资源分拣处理有限公司
H88: 30.44 | I88: 广东钟银塑料有限公司
H89: 65.61 | I89: 湖南省同力循环经济发展有限公司
H90: 66.27 | I90: 湖南省新基源新材料科技有限公司
H91: 67.73 | I91: 湖南同泰循环经济有限公司
H92: 229.57 | I92: 湖南众科新材料有限公司
H93: 64.91 | I93: 廊坊迈科塑料科技有限公司
H94: 33.71 | I94: 汨罗市丰瑞新材料科技有限公司
H95: 32.47 | I95: 清远市宏鑫塑料五金有限公司
H96: 60.77 | I96: 天津恒信发再生资源有限公司
H97: 66.77 | I97: 天津凯成发金属制品有限公司
H98: 31.77 | I98: 天津凯撒金属有限公司
H99: 167.495 | I99: 天津永俊金属制品有限公司
A100: 其他杂料及废物 （二次产物） | B100: G-01-07 | C100: 2.893 | D100: 22.236 | E100: 0 | F100: 23.49 | G100: 0 | H100: 23.49 | I100: 株洲合信再生资源有限公司 | J100: =C100+D100+E100-F100-G100 -> 1.639
A101: 备注：本期二次加工领料1024.5944吨，加工后产物入库1015.2775吨，损耗9.3169吨。
